fUST/lending_fUST_20250814
["ID","MTS","AMOUNT","RATE_DAILY","PERIOD"]
[379188808,1755180636684,-460.0,0.00016438,2]
[379188810,1755180636693,-460.0,0.00016438,2]
[379188812,1755180636706,-528.82,0.00016438,2]
[379188814,1755180636716,-499.23,0.00016438,2]
[379188816,1755180636725,-582.62005579,0.00016438,2]
[379188818,1755180636734,-460.0,0.00016438,2]
[379188820,1755180636743,-525.35932693,0.00016438,2]
[379188822,1755180636753,-833.64,0.00016438,2]
[379188824,1755180636762,-460.0,0.00016438,2]
[379188826,1755180636771,-460.0,0.00016438,2]
[379188828,1755180636781,-460.0,0.00016438,2]
[379188830,1755180636790,-460.0,0.00016438,2]
[379188832,1755180636800,-460.0,0.00016438,2]
[379188834,1755180636809,-460.0,0.00016438,2]
[379188836,1755180636818,-460.0,0.00016438,2]
[379188838,1755180636827,-461.44803139,0.00016438,2]
[379188840,1755180636836,-460.0,0.00016438,2]
[379188842,1755180636845,-460.0,0.00016438,2]
[379188844,1755180636854,-460.0,0.00016438,2]
[379188846,1755180636864,-1007.60723624,0.00016438,2]
[379188848,1755180636873,-460.0,0.00016438,2]
[379188850,1755180636883,-500.0,0.00016473,2]
[379188852,1755180636892,-500.0,0.00016473,2]
[379188854,1755180636901,-500.0,0.00016473,2]
[379188856,1755180636911,-500.0,0.00016473,2]
[379188858,1755180636920,-2426.87259197,0.00016594,2]
[379188860,1755180636932,-151.0,0.000166,2]
[379188861,1755180636941,-168.0,0.00016606,2]
[379188863,1755180636950,-168.0,0.00016684,2]
[379188865,1755180636959,-500.0,0.00016711,2]
[379188867,1755180636968,-460.0,0.00016712,2]
[379188869,1755180636977,-460.0,0.00016712,2]
[379188871,1755180636987,-676.15,0.00016712,2]
[379188873,1755180636997,-460.0,0.00016712,2]
[379188875,1755180637006,-460.0,0.00016712,2]
[379188877,1755180637015,-460.0,0.00016712,2]
[379188879,1755180637025,-460.0,0.00016712,2]
[379188881,1755180637034,-470.06,0.00016712,2]
[379188883,1755180637044,-460.0,0.00016712,2]
[379188885,1755180637054,-460.0,0.00016712,2]
[379188887,1755180637063,-460.0,0.00016712,2]
[379188889,1755180637073,-460.0,0.00016712,2]
[379188891,1755180637083,-460.0,0.00016712,2]
[379188893,1755180637093,-460.0,0.00016712,2]
[379188895,1755180637102,-460.0,0.00016712,2]
[379188897,1755180637112,-460.0,0.00016712,2]
[379188899,1755180637121,-477.74,0.00016712,2]
[379188901,1755180637130,-460.0,0.00016712,2]
[379188903,1755180637139,-467.90189732,0.00016712,2]
[379188905,1755180637148,-460.0,0.00016712,2]
[379188907,1755180637157,-460.0,0.00016712,2]
[379188909,1755180637167,-460.0,0.00016712,2]
[379188910,1755180637178,-460.0,0.00016712,2]
[379188912,1755180637188,-543.61,0.00016712,2]
[379188914,1755180637197,-460.0,0.00016712,2]
[379188916,1755180637207,-460.0,0.00016712,2]
[379188918,1755180637216,-460.0,0.00016712,2]
[379188920,1755180637226,-460.0,0.00016712,2]
[379188922,1755180637236,-460.0,0.00016712,2]
[379188924,1755180637245,-460.0,0.00016712,2]
[379188926,1755180637255,-460.0,0.00016712,2]
[379188928,1755180637264,-460.0,0.00016712,2]
[379188930,1755180637274,-460.0,0.00016712,2]
[379188932,1755180637283,-516.59,0.00016712,2]
[379188934,1755180637293,-779.29,0.00016712,2]
[379188936,1755180637302,-460.0,0.00016712,2]
[379188938,1755180637311,-460.0,0.00016712,2]
[379188940,1755180637321,-460.0,0.00016712,2]
[379188942,1755180637331,-1051.17,0.00016712,2]
[379188944,1755180637342,-460.0,0.00016712,2]
[379188946,1755180637351,-460.0,0.00016712,2]
[379188948,1755180637360,-460.0,0.00016712,2]
[379188949,1755180637370,-460.0,0.00016712,2]
[379188951,1755180637379,-460.0,0.00016712,2]
[379188953,1755180637389,-378.42586533,0.00016712,2]
[379188955,1755180637398,-460.0,0.00016712,2]
[379188957,1755180637407,-460.0,0.00016712,2]
[379188960,1755180637418,-460.0,0.00016712,2]
[379188961,1755180637428,-460.0,0.00016712,2]
[379188964,1755180637438,-460.0,0.00016712,2]
[379188965,1755180637448,-460.0,0.00016712,2]
[379188967,1755180637457,-460.0,0.00016712,2]
[379188969,1755180637466,-460.0,0.00016712,2]
[379188971,1755180637475,-460.0,0.00016712,2]
[379188973,1755180637485,-460.0,0.00016712,2]
[379188975,1755180637494,-460.0,0.00016712,2]
[379188977,1755180637504,-460.0,0.00016712,2]
[379188979,1755180637514,-460.0,0.00016712,2]
[379188981,1755180637526,-503.7,0.00016712,2]
[379188983,1755180637535,-460.0,0.00016712,2]
[379188985,1755180637545,-460.0,0.00016712,2]
[379188987,1755180637554,-460.0,0.00016712,2]
[379188989,1755180637563,-460.0,0.00016712,2]
[379188991,1755180637573,-510.50134927,0.00016712,2]
[379188993,1755180637582,-460.0,0.00016712,2]
[379188995,1755180637592,-460.0,0.00016712,2]
[379188997,1755180637601,-460.0,0.00016712,2]
[379188999,1755180637610,-638.58,0.00016712,2]
[379189001,1755180637620,-460.0,0.00016712,2]
[379189003,1755180637633,-460.0,0.00016712,2]
[379189005,1755180637643,-489.10089982,0.00016712,2]
[379189007,1755180637652,-717.67,0.00016712,2]
[379189009,1755180637661,-462.23337633,0.00016712,2]
[379189011,1755180637674,-460.0,0.00016712,2]
[379189013,1755180637683,-460.0,0.00016712,2]
[379189015,1755180637693,-513.55,0.00016712,2]
[379189017,1755180637702,-460.0,0.00016712,2]
[379189019,1755180637713,-460.0,0.00016712,2]
[379189021,1755180637723,-603.15,0.00016712,2]
[379189023,1755180637732,-460.0,0.00016712,2]
[379189025,1755180637741,-460.0,0.00016712,2]
[379189027,1755180637750,-1015.45,0.00016712,2]
[379189029,1755180637759,-798.93,0.00016712,2]
[379189031,1755180637769,-564.31,0.00016712,2]
[379189033,1755180637778,-460.0,0.00016712,2]
[379189035,1755180637787,-929.4,0.00016712,2]
[379189037,1755180637797,-460.0,0.00016712,2]
[379189039,1755180637806,-460.0,0.00016712,2]
[379189041,1755180637815,-460.0,0.00016712,2]
[379189043,1755180637825,-578.3495442,0.00016712,2]
[379189045,1755180637834,-543.74,0.00016712,2]
[379189046,1755180637844,-460.0,0.00016712,2]
[379189049,1755180637854,-752.47,0.00016712,2]
[379189050,1755180637863,-151.0,0.00016712,2]
[379189052,1755180637873,-309.0,0.00016712,2]
[379189054,1755180637882,-460.0,0.00016712,2]
[379189056,1755180637892,-460.0,0.00016712,2]
[379189058,1755180637901,-460.0,0.00016712,2]
[379189060,1755180637911,-460.0,0.00016712,2]
[379189062,1755180637920,-501.83819179,0.00016712,2]
[379189064,1755180637931,-460.0,0.00016712,2]
[379189066,1755180637942,-249.5725968,0.00016712,2]
[379189068,1755180637951,-460.0,0.00016712,2]
[379189070,1755180637961,-460.0,0.00016712,2]
[379189072,1755180637970,-229.50989978,0.00016712,2]
[379189074,1755180637980,-460.0,0.00016712,2]
[379189076,1755180637989,-460.0,0.00016712,2]
[379189077,1755180637998,-460.0,0.00016712,2]
[379189078,1755180638007,-460.0,0.00016712,2]
[379189079,1755180638017,-460.0,0.00016712,2]
[379189080,1755180638026,-1174.85,0.00016712,2]
[379189081,1755180638036,-460.0,0.00016712,2]
[379189082,1755180638045,-524.52160149,0.00016712,2]
[379189083,1755180638054,-460.0,0.00016712,2]
[379189084,1755180638064,-460.0,0.00016712,2]
[379189085,1755180638073,-460.0,0.00016712,2]
[379189086,1755180638082,-407.31309147,0.00016712,2]
[379189087,1755180638091,-805.76,0.00016712,2]
[379189088,1755180638101,-460.0,0.00016712,2]
[379189089,1755180638111,-460.0,0.00016712,2]
[379189090,1755180638120,-460.0,0.00016712,2]
[379189091,1755180638129,-666.69,0.00016712,2]
[379189092,1755180638139,-210.05933773,0.00016712,2]
[379189093,1755180638148,-460.0,0.00016712,2]
[379189094,1755180638157,-912.44,0.00016712,2]
[379189095,1755180638167,-1742.87,0.00016712,2]
[379189096,1755180638178,-460.0,0.00016712,2]
[379189097,1755180638187,-1010.08,0.00016712,2]
[379189098,1755180638197,-609.89,0.00016712,2]
[379189099,1755180638206,-947.27,0.00016712,2]
[379189100,1755180638215,-460.0,0.00016712,2]
[379189101,1755180638224,-333.30112337,0.00016712,2]
[379189102,1755180638234,-641.95,0.00016712,2]
[379189103,1755180638244,-460.0,0.00016712,2]
[379189104,1755180638253,-460.0,0.00016712,2]
[379189105,1755180638264,-460.0,0.00016712,2]
[379189106,1755180638273,-833.52,0.00016712,2]
[379189107,1755180638283,-460.0,0.00016712,2]
[379189108,1755180638293,-460.0,0.00016712,2]
[379189109,1755180638303,-460.0,0.00016712,2]
[379189110,1755180638313,-460.0,0.00016712,2]
[379189111,1755180638322,-460.0,0.00016712,2]
[379189112,1755180638332,-460.0,0.00016712,2]
[379189113,1755180638341,-571.62,0.00016712,2]
[379189114,1755180638351,-2472.02,0.00016712,2]
[379189116,1755180638361,-583.29,0.00016712,2]
[379189117,1755180638370,-460.0,0.00016712,2]
[379189119,1755180638379,-1622.78,0.00016712,2]
[379189121,1755180638389,-510.56,0.00016712,2]
[379189123,1755180638398,-460.0,0.00016712,2]
[379189125,1755180638408,-970.14,0.00016712,2]
[379189127,1755180638417,-463.71266441,0.00016712,2]
[379189129,1755180638429,-371.18990114,0.00016712,2]
[379189131,1755180638440,-696.95,0.00016712,2]
[379189133,1755180638449,-1484.3,0.00016712,2]
[379189135,1755180638458,-675.55,0.00016712,2]
[379189137,1755180638468,-2567.01,0.00016712,2]
[379189139,1755180638477,-460.0,0.00016712,2]
[379189141,1755180638486,-502.28859155,0.00016712,2]
[379189143,1755180638496,-460.0,0.00016712,2]
[379189145,1755180638505,-460.0,0.00016712,2]
[379189147,1755180638514,-576.59,0.00016712,2]
[379189149,1755180638523,-464.79,0.00016712,2]
[379189150,1755180638532,-975.2,0.00016712,2]
[379189151,1755180638542,-460.0,0.00016712,2]
[379189152,1755180638554,-460.0,0.00016712,2]
[379189153,1755180638563,-788.46,0.00016712,2]
[379189154,1755180638573,-460.0,0.00016712,2]
[379189155,1755180638582,-460.0,0.00016712,2]
[379189156,1755180638592,-460.0,0.00016712,2]
[379189157,1755180638601,-460.0,0.00016712,2]
[379189158,1755180638610,-460.0,0.00016712,2]
[379189159,1755180638618,-528.61,0.00016712,2]
[379189160,1755180638630,-460.0,0.00016712,2]
[379189161,1755180638639,-460.0,0.00016712,2]
[379189162,1755180638648,-563.74,0.00016712,2]
[379189163,1755180638658,-7806.81,0.00016712,2]
[379189164,1755180638667,-460.0,0.00016712,2]
[379189165,1755180638679,-460.0,0.00016712,2]
[379189166,1755180638689,-1740.26,0.00016712,2]
[379189167,1755180638697,-862.26,0.00016712,2]
[379189168,1755180638708,-460.0,0.00016712,2]
[379189169,1755180638718,-480.87,0.00016712,2]
[379189170,1755180638727,-460.0,0.00016712,2]
[379189171,1755180638737,-460.0,0.00016712,2]
[379189172,1755180638746,-460.0,0.00016712,2]
[379189173,1755180638755,-460.0,0.00016712,2]
[379189174,1755180638765,-1877.55,0.00016712,2]
[379189175,1755180638774,-460.0,0.00016712,2]
[379189176,1755180638783,-404.01596406,0.00016712,2]
[379189177,1755180638793,-4614.94,0.00016712,2]
[379189178,1755180638803,-1332.3,0.00016712,2]
[379189179,1755180638812,-460.0,0.00016712,2]
[379189180,1755180638823,-531.92,0.00016712,2]
[379189181,1755180638832,-582.87,0.00016712,2]
[379189182,1755180638841,-460.0,0.00016712,2]
[379189183,1755180638850,-460.0,0.00016712,2]
[379189184,1755180638860,-460.0,0.00016712,2]
[379189185,1755180638869,-1668.91,0.00016712,2]
[379189186,1755180638878,-460.0,0.00016712,2]
[379189187,1755180638889,-460.0,0.00016712,2]
[379189188,1755180638898,-2618.86,0.00016712,2]
[379189189,1755180638907,-460.0,0.00016712,2]
[379189190,1755180638917,-888.0,0.00016712,2]
[379189191,1755180638928,-595.48,0.00016712,2]
[379189192,1755180638937,-1212.14,0.00016712,2]
[379189193,1755180638946,-460.0,0.00016712,2]
[379189194,1755180638956,-553.71,0.00016712,2]
[379189195,1755180638965,-460.0,0.00016712,2]
[379189196,1755180638975,-1770.61,0.00016712,2]
[379189197,1755180639139,-407.36811487,0.00016712,2]
[379189198,1755180639149,-5096.05,0.00016712,2]
[379189199,1755180639159,-460.0,0.00016712,2]
[379189200,1755180639169,-460.0,0.00016712,2]
[379189201,1755180639180,-528.82,0.00016712,2]
[379189202,1755180639190,-499.23,0.00016712,2]
[379189203,1755180639199,-833.64,0.00016712,2]
[379189204,1755180639209,-460.0,0.00016712,2]
[379189205,1755180639219,-460.0,0.00016712,2]
[379189206,1755180639229,-460.0,0.00016712,2]
[379189207,1755180639238,-510.56,0.00016712,2]
[379189208,1755180639248,-460.0,0.00016712,2]
[379189209,1755180639258,-460.0,0.00016712,2]
[379189210,1755180639268,-500.0,0.00016773,2]
[379189211,1755180639277,-500.0,0.00016773,2]
[379189212,1755180639288,-307.03355461,0.00016773,2]
[379189213,1755180639298,-500.0,0.00016773,2]
[379189214,1755180639309,-500.0,0.00016773,2]
[379189215,1755180639319,-500.0,0.00016773,2]
[379189216,1755180639329,-612.12284503,0.00016773,2]
[379189217,1755180639339,-500.0,0.00016773,2]
[379189218,1755180639348,-500.0,0.00016773,2]
[379189219,1755180639358,-500.0,0.00016773,2]
[379189220,1755180639368,-500.0,0.00016773,2]
[379189221,1755180639378,-151.0,0.00016773,2]
[379189222,1755180639388,-168.0,0.00016796,2]
[379189223,1755180639397,-151.0,0.000168,2]
[379189224,1755180639407,-2426.87259197,0.00016851,2]
[379189225,1755180639416,-160.0,0.00016887,2]
[379189226,1755180639428,-528.19044044,0.00016888,2]
[379189227,1755180639438,-843.37884167,0.00016888,2]
[379189228,1755180639448,-160.0,0.00016888,2]
[379189229,1755180639458,-215.59581046,0.00016888,2]
[379189230,1755180639468,-160.0,0.00016888,2]
[379189231,1755180639478,-160.0,0.00016888,2]
[379189232,1755180639489,-232.05637125,0.00016888,2]
[379189234,1755180639499,-160.0,0.00016888,2]
[379189235,1755180639509,-160.0,0.00016888,2]
[379189236,1755180639519,-417.15472785,0.00016888,2]
[379189237,1755180639529,-461.9529908,0.00016888,2]
[379189238,1755180639539,-160.0,0.00016888,2]
[379189240,1755180639550,-160.0,0.00016888,2]
[379189241,1755180639559,-151.0,0.000169,2]
[379189242,1755180639569,-168.0,0.0001691,2]
[379189243,1755180639579,-168.0,0.00016959,2]
[379189245,1755180639590,-500.0,0.00016973,2]
[379189246,1755180639600,-500.0,0.00016973,2]
[379189247,1755180639612,-500.0,0.00016985,2]
[379189248,1755180639623,-151.0,0.00016986,2]
[379189249,1755180639640,-151.0,0.00016986,2]
[379189250,1755180639650,-385.039055,0.00016986,2]
[379189251,1755180639660,-385.039055,0.00016986,2]
[379189252,1755180639671,-460.0,0.00016986,2]
[379189253,1755180639683,-151.0,0.00016986,2]
[379189254,1755180639693,-530.33841159,0.00016986,2]
[379189255,1755180639703,-676.15,0.00016986,2]
[379189256,1755180639715,-151.0,0.00016986,2]
[379189257,1755180639725,-460.0,0.00016986,2]
[379189258,1755180639735,-460.0,0.00016986,2]
[379189259,1755180639745,-460.0,0.00016986,2]
[379189260,1755180639755,-470.06,0.00016986,2]
[379189261,1755180639765,-460.0,0.00016986,2]
[379189262,1755180639775,-460.0,0.00016986,2]
[379189263,1755180639785,-460.0,0.00016986,2]
[379189264,1755180639794,-460.0,0.00016986,2]
[379189265,1755180639804,-460.0,0.00016986,2]
[379189266,1755180639814,-460.0,0.00016986,2]
[379189267,1755180639823,-460.0,0.00016986,2]
[379189268,1755180639833,-477.74,0.00016986,2]
[379189269,1755180639843,-460.0,0.00016986,2]
[379189270,1755180639852,-460.0,0.00016986,2]
[379189271,1755180639862,-460.0,0.00016986,2]
[379189272,1755180639873,-543.61,0.00016986,2]
[379189273,1755180639882,-273.16709212,0.00016986,2]
[379189274,1755180639892,-460.0,0.00016986,2]
[379189275,1755180639902,-460.0,0.00016986,2]
[379189276,1755180639911,-460.0,0.00016986,2]
[379189277,1755180639921,-465.55214599,0.00016986,2]
[379189278,1755180639935,-498.55068052,0.00016986,2]
[379189279,1755180639944,-516.59,0.00016986,2]
[379189280,1755180639954,-779.29,0.00016986,2]
[379189281,1755180639965,-460.0,0.00016986,2]
[379189282,1755180639975,-460.0,0.00016986,2]
[379189283,1755180639985,-460.0,0.00016986,2]
[379189284,1755180639995,-1051.17,0.00016986,2]
[379189285,1755180640004,-460.0,0.00016986,2]
[379189286,1755180640014,-460.0,0.00016986,2]
[379189287,1755180640024,-460.0,0.00016986,2]
[379189288,1755180640034,-460.0,0.00016986,2]
[379189289,1755180640044,-460.0,0.00016986,2]
[379189290,1755180640054,-460.0,0.00016986,2]
[379189291,1755180640064,-460.0,0.00016986,2]
[379189292,1755180640074,-460.0,0.00016986,2]
[379189293,1755180640084,-460.0,0.00016986,2]
[379189294,1755180640093,-460.0,0.00016986,2]
[379189295,1755180640103,-444.52019383,0.00016986,2]
[379189297,1755180640113,-460.0,0.00016986,2]
[379189299,1755180640122,-562.03000022,0.00016986,2]
[379189300,1755180640132,-503.7,0.00016986,2]
[379189301,1755180640143,-460.0,0.00016986,2]
[379189302,1755180640153,-460.0,0.00016986,2]
[379189303,1755180640163,-489.45452389,0.00016986,2]
[379189304,1755180640173,-460.0,0.00016986,2]
[379189305,1755180640186,-460.0,0.00016986,2]
[379189306,1755180640196,-638.58,0.00016986,2]
[379189307,1755180640206,-460.0,0.00016986,2]
[379189308,1755180640216,-460.0,0.00016986,2]
[379189309,1755180640226,-717.67,0.00016986,2]
[379189310,1755180640236,-460.0,0.00016986,2]
[379189311,1755180640246,-513.55,0.00016986,2]
[379189312,1755180640255,-460.0,0.00016986,2]
[379189313,1755180640266,-460.0,0.00016986,2]
[379189314,1755180640275,-603.15,0.00016986,2]
[379189315,1755180640285,-460.0,0.00016986,2]
[379189316,1755180640295,-460.0,0.00016986,2]
[379189317,1755180640305,-1015.45,0.00016986,2]
[379189318,1755180640314,-798.93,0.00016986,2]
[379189319,1755180640324,-564.31,0.00016986,2]
[379189320,1755180640334,-460.0,0.00016986,2]
[379189321,1755180640343,-929.4,0.00016986,2]
[379189322,1755180640353,-460.0,0.00016986,2]
[379189323,1755180640362,-423.79572133,0.00016986,2]
[379189324,1755180640371,-460.0,0.00016986,2]
[379189325,1755180640381,-543.74,0.00016986,2]
[379189326,1755180640390,-752.47,0.00016986,2]
[379189327,1755180640400,-460.0,0.00016986,2]
[379189328,1755180640410,-460.0,0.00016986,2]
[379189329,1755180640420,-460.0,0.00016986,2]
[379189330,1755180640430,-460.0,0.00016986,2]
[379189331,1755180640440,-460.0,0.00016986,2]
[379189332,1755180640449,-460.0,0.00016986,2]
[379189333,1755180640459,-1174.85,0.00016986,2]
[379189334,1755180640469,-460.0,0.00016986,2]
[379189335,1755180640478,-322.06715578,0.00016986,2]
[379189336,1755180640488,-805.76,0.00016986,2]
[379189337,1755180640498,-460.0,0.00016986,2]
[379189338,1755180640507,-666.69,0.00016986,2]
[379189339,1755180640517,-463.49842696,0.00016986,2]
[379189340,1755180640526,-912.44,0.00016986,2]
[379189341,1755180640536,-1184.1378329,0.00016986,2]
[379189342,1755180641167,-2465.80067433,0.00016328,2]
[379189343,1755180641180,-102534.19932567,0.00016328,2]
[379189344,1755180641190,-1023.43,0.00016438,2]
[379189345,1755180641199,-460.0,0.00016438,2]
[379189346,1755180641209,-1023.43,0.00016712,2]
[379189347,1755180641218,-460.0,0.00016712,2]
[379189348,1755180641228,-558.7321671,0.00016986,2]
[379189349,1755180641237,-460.0,0.00016986,2]
[379189350,1755180641247,-1010.08,0.00016986,2]
[379189351,1755180641257,-609.89,0.00016986,2]
[379189352,1755180641267,-947.27,0.00016986,2]
[379189353,1755180641276,-460.0,0.00016986,2]
[379189354,1755180641286,-641.95,0.00016986,2]
[379189355,1755180641296,-460.0,0.00016986,2]
[379189356,1755180641306,-460.0,0.00016986,2]
[379189357,1755180641316,-460.0,0.00016986,2]
[379189358,1755180641326,-833.52,0.00016986,2]
[379189359,1755180641336,-460.0,0.00016986,2]
[379189360,1755180641345,-460.0,0.00016986,2]
[379189361,1755180641395,-460.0,0.00016986,2]
[379189362,1755180641406,-460.0,0.00016986,2]
[379189363,1755180641415,-460.0,0.00016986,2]
[379189364,1755180641427,-571.62,0.00016986,2]
[379189365,1755180641436,-2472.02,0.00016986,2]
[379189366,1755180641445,-583.29,0.00016986,2]
[379189367,1755180641454,-460.0,0.00016986,2]
[379189368,1755180641464,-1622.78,0.00016986,2]
[379189369,1755180641475,-510.56,0.00016986,2]
[379189370,1755180641484,-460.0,0.00016986,2]
[379189371,1755180641494,-970.14,0.00016986,2]
[379189372,1755180641503,-696.95,0.00016986,2]
[379189373,1755180641513,-1484.3,0.00016986,2]
[379189374,1755180641522,-675.55,0.00016986,2]
[379189375,1755180641531,-2567.01,0.00016986,2]
[379189376,1755180641541,-280.52974613,0.00016986,2]
[379189377,1755180641569,-179.47025387,0.00016986,2]
[379189378,1755180641579,-576.59,0.00016986,2]
[379189379,1755180641588,-464.79,0.00016986,2]
[379189380,1755180641598,-975.2,0.00016986,2]
[379189381,1755180641608,-460.0,0.00016986,2]
[379189382,1755180641617,-460.0,0.00016986,2]
[379189383,1755180641628,-788.46,0.00016986,2]
[379189384,1755180641639,-460.0,0.00016986,2]
[379189385,1755180641648,-460.0,0.00016986,2]
[379189386,1755180641657,-460.0,0.00016986,2]
[379189387,1755180641666,-460.0,0.00016986,2]
[379189388,1755180641679,-460.0,0.00016986,2]
[379189389,1755180641689,-528.61,0.00016986,2]
[379189390,1755180641698,-460.0,0.00016986,2]
[379189391,1755180641708,-460.0,0.00016986,2]
[379189392,1755180641719,-563.74,0.00016986,2]
[379189393,1755180641728,-7806.81,0.00016986,2]
[379189394,1755180641738,-512.15169061,0.00016986,2]
[379189395,1755180641747,-460.0,0.00016986,2]
[379189396,1755180641756,-1740.26,0.00016986,2]
[379189397,1755180641766,-862.26,0.00016986,2]
[379189398,1755180641775,-460.0,0.00016986,2]
[379189399,1755180641784,-480.87,0.00016986,2]
[379189400,1755180641794,-460.0,0.00016986,2]
[379189401,1755180641803,-460.0,0.00016986,2]
[379189402,1755180641812,-1877.55,0.00016986,2]
[379189403,1755180641822,-460.0,0.00016986,2]
[379189404,1755180641831,-4614.94,0.00016986,2]
[379189405,1755180641840,-1332.3,0.00016986,2]
[379189406,1755180641850,-460.0,0.00016986,2]
[379189407,1755180641859,-531.92,0.00016986,2]
[379189408,1755180641868,-582.87,0.00016986,2]
[379189409,1755180641878,-460.0,0.00016986,2]
[379189410,1755180641887,-460.0,0.00016986,2]
[379189411,1755180641896,-1668.91,0.00016986,2]
[379189412,1755180641905,-460.0,0.00016986,2]
[379189413,1755180641915,-2618.86,0.00016986,2]
[379189414,1755180641924,-460.0,0.00016986,2]
[379189415,1755180641936,-888.0,0.00016986,2]
[379189416,1755180641946,-595.48,0.00016986,2]
[379189417,1755180641955,-1212.14,0.00016986,2]
[379189418,1755180641965,-460.0,0.00016986,2]
[379189419,1755180641975,-553.71,0.00016986,2]
[379189420,1755180641984,-460.0,0.00016986,2]
[379189421,1755180641994,-1770.61,0.00016986,2]
[379189422,1755180642003,-460.0,0.00016986,2]
[379189423,1755180642013,-5096.05,0.00016986,2]
[379189424,1755180642022,-528.82,0.00016986,2]
[379189425,1755180642031,-499.23,0.00016986,2]
[379189426,1755180642041,-833.64,0.00016986,2]
[379189427,1755180642051,-460.0,0.00016986,2]
[379189428,1755180642061,-198.09140947,0.00016986,2]
[379189429,1755180642071,-460.0,0.00016986,2]
[379189430,1755180642080,-460.0,0.00016986,2]
[379189431,1755180642090,-1023.43,0.00016986,2]
[379189432,1755180642099,-460.0,0.00016986,2]
[379189433,1755180642109,-151.0,0.00017,2]
[379189434,1755180642118,-151.0,0.00017,2]
[379189435,1755180642127,-502.21511233,0.00017,2]
[379189436,1755180642137,-1000.0,0.00017021,2]
[379189437,1755180642146,-260.8153617,0.00017021,2]
[379189438,1755180642155,-254.49316604,0.00017021,2]
[379189439,1755180642165,-168.0,0.00017096,2]
[379189440,1755180642174,-151.0,0.000171,2]
[379189441,1755180642184,-2426.87259197,0.00017107,2]
[379189442,1755180642193,-168.0,0.00017115,2]
[379189443,1755180642203,-151.0,0.0001726,2]
[379189444,1755180642212,-151.0,0.0001726,2]
[379189445,1755180642222,-385.039055,0.0001726,2]
[379189446,1755180642233,-385.039055,0.0001726,2]
[379189447,1755180642244,-460.0,0.0001726,2]
[379189448,1755180642254,-151.0,0.0001726,2]
[379189449,1755180642265,-676.15,0.0001726,2]
[379189450,1755180642274,-151.0,0.0001726,2]
[379189451,1755180642284,-460.0,0.0001726,2]
[379189452,1755180642295,-126.32492014,0.0001726,2]
[379189453,1755180642308,-333.67507986,0.0001726,2]
[379189454,1755180642317,-470.06,0.0001726,2]
[379189455,1755180642327,-460.0,0.0001726,2]
[379189456,1755180642337,-460.0,0.0001726,2]
[379189457,1755180642346,-460.0,0.0001726,2]
[379189458,1755180642355,-460.0,0.0001726,2]
[379189459,1755180642365,-460.0,0.0001726,2]
[379189460,1755180642374,-460.0,0.0001726,2]
[379189461,1755180642384,-477.74,0.0001726,2]